fUST/lending_fUST_20240402
["ID","MTS","AMOUNT","RATE_DAILY","PERIOD"]
[321230697,1712001048338,-500.0,0.00055068,120]
[321230698,1712001048350,-500.0,0.00055068,120]
[321230699,1712001048362,-9054.09,0.00055068,90]
[321230700,1712001048375,-2090.49,0.00055068,21]
[321230701,1712001048386,-500.0,0.00055068,60]
[321230702,1712001048397,-559.68,0.00055068,120]
[321230703,1712001048407,-500.0,0.00055068,120]
[321230704,1712001048418,-500.0,0.00055068,120]
[321230705,1712001048429,-500.0,0.00055068,120]
[321230706,1712001048440,-500.0,0.00055068,120]
[321230707,1712001048450,-500.0,0.00055068,120]
[321230708,1712001048463,-1994.92,0.00055068,120]
[321230709,1712001048473,-1000.0,0.00055068,7]
[321230710,1712001048482,-500.0,0.00055068,120]
[321230711,1712001048493,-2838.14,0.00055068,120]
[321230712,1712001048504,-719.28,0.00055068,120]
[321230713,1712001048513,-500.0,0.00055068,120]
[321230714,1712001048523,-500.0,0.00055068,120]
[321230715,1712001048532,-500.0,0.00055068,120]
[321230716,1712001048541,-500.0,0.00055068,120]
[321230717,1712001048551,-2070.72,0.00055068,120]
[321230718,1712001048561,-500.0,0.00055068,120]
[321230719,1712001048570,-500.0,0.00055068,120]
[321230720,1712001048581,-500.0,0.00055068,120]
[321230721,1712001048591,-373.58992799,0.00055068,120]
[321230722,1712001048601,-720.85,0.00055068,120]
[321230723,1712001048612,-500.0,0.00055068,120]
[321230724,1712001048622,-793.46,0.00055068,120]
[321230725,1712001048631,-500.0,0.00055068,120]
[321230726,1712001048640,-591.34710333,0.00055068,120]
[321230727,1712001048650,-500.0,0.00055068,120]
[321230728,1712001048659,-679.11,0.00055068,120]
[321230729,1712001048669,-1160.04,0.00055068,120]
[321230730,1712001048679,-153.0,0.0005516,2]
[321230731,1712001048690,-882.0,0.000552,30]
[321230732,1712001048699,-13258.98620584,0.00055287,15]
[321230733,1712001048709,-325.11062596,0.0005534,4]
[321230734,1712001048719,-160.0,0.00055341,90]
[321230735,1712001048798,-156.42365541,0.00055341,4]
[321230736,1712001048808,-397.02972107,0.00055342,120]
[321230737,1712001048818,-500.0,0.00055342,120]
[321230738,1712001048828,-558.1,0.00055342,120]
[321230739,1712001048839,-225.56517564,0.00055342,120]
[321230740,1712001048850,-500.0,0.00055342,120]
[321230741,1712001048860,-500.0,0.00055342,120]
[321230742,1712001048870,-500.0,0.00055342,120]
[321230743,1712001048880,-500.0,0.00055342,120]
[321230744,1712001048889,-500.0,0.00055342,120]
[321230745,1712001048899,-500.0,0.00055342,120]
[321230746,1712001048909,-500.0,0.00055342,120]
[321230747,1712001048917,-500.0,0.00055342,2]
[321230748,1712001048928,-587.11,0.00055342,120]
[321230749,1712001048937,-500.0,0.00055342,120]
[321230750,1712001048948,-500.0,0.00055342,120]
[321230751,1712001048957,-852.63,0.00055342,120]
[321230752,1712001048967,-500.0,0.00055342,120]
[321230753,1712001048978,-686.75,0.00055342,120]
[321230754,1712001048987,-603.95,0.00055342,120]
[321230755,1712001048999,-3055.68,0.00055342,120]
[321230756,1712001049008,-817.53,0.00055342,120]
[321230757,1712001049017,-579.31,0.00055342,120]
[321230758,1712001049026,-500.0,0.00055342,120]
[321230759,1712001049035,-500.0,0.00055342,120]
[321230760,1712001049044,-500.0,0.00055342,120]
[321230761,1712001049053,-6726.5,0.00055342,120]
[321230762,1712001049063,-500.0,0.00055342,120]
[321230763,1712001049074,-500.0,0.00055342,120]
[321230764,1712001049083,-9054.09,0.00055342,90]
[321230765,1712001049092,-2090.49,0.00055342,21]
[321230766,1712001049102,-500.0,0.00055342,60]
[321230767,1712001049111,-559.68,0.00055342,120]
[321230768,1712001049121,-500.0,0.00055342,120]
[321230769,1712001049130,-500.0,0.00055342,120]
[321230770,1712001049139,-500.0,0.00055342,120]
[321230771,1712001049149,-500.0,0.00055342,120]
[321230772,1712001049160,-1994.92,0.00055342,120]
[321230773,1712001049169,-500.0,0.00055342,120]
[321230774,1712001049180,-1000.0,0.00055342,7]
[321230775,1712001049190,-2838.14,0.00055342,120]
[321230776,1712001049199,-719.28,0.00055342,120]
[321230777,1712001049209,-500.0,0.00055342,120]
[321230778,1712001049219,-205.20956012,0.00055342,120]
[321230779,1712001049228,-500.0,0.00055342,120]
[321230780,1712001049239,-500.0,0.00055342,120]
[321230781,1712001049248,-2070.72,0.00055342,120]
[321230782,1712001049258,-500.0,0.00055342,120]
[321230783,1712001049268,-500.0,0.00055342,120]
[321230784,1712001049280,-500.0,0.00055342,120]
[321230785,1712001049290,-720.85,0.00055342,120]
[321230786,1712001049300,-500.0,0.00055342,120]
[321230787,1712001049310,-793.46,0.00055342,120]
[321230788,1712001049319,-500.0,0.00055342,120]
[321230789,1712001049328,-600.02722347,0.00055342,120]
[321230790,1712001049337,-679.11,0.00055342,120]
[321230791,1712001049347,-1160.04,0.00055342,120]
[321230792,1712001049356,-603.57749575,0.00055347,7]
[321230793,1712001049365,-472.0,0.000556,47]
[321230794,1712001049377,-500.0,0.00055616,120]
[321230795,1712001049386,-558.1,0.00055616,120]
[321230796,1712001049394,-500.0,0.00055616,120]
[321230797,1712001049403,-474.49249029,0.00055616,120]
[321230798,1712001049413,-500.0,0.00055616,120]
[321230799,1712001049422,-151.0,0.00055616,120]
[321230800,1712001049431,-500.0,0.00055616,120]
[321230801,1712001049440,-216.859782,0.00055616,120]
[321230802,1712001049451,-216.859782,0.00055616,120]
[321230803,1712001049460,-500.0,0.00055616,120]
[321230804,1712001049469,-500.0,0.00055616,120]
[321230805,1712001049478,-500.0,0.00055616,120]
[321230806,1712001049487,-500.0,0.00055616,2]
[321230807,1712001049496,-587.11,0.00055616,120]
[321230808,1712001049505,-417.89557895,0.00055616,120]
[321230809,1712001049514,-500.0,0.00055616,120]
[321230810,1712001049524,-852.63,0.00055616,120]
[321230811,1712001049533,-500.0,0.00055616,120]
[321230812,1712001049543,-686.75,0.00055616,120]
[321230813,1712001049553,-164.622582,0.00055616,120]
[321230814,1712001049562,-164.622582,0.00055616,120]
[321230815,1712001049572,-603.95,0.00055616,120]
[321230816,1712001049581,-3055.68,0.00055616,120]
[321230817,1712001049591,-817.53,0.00055616,120]
[321230818,1712001049600,-579.31,0.00055616,120]
[321230819,1712001049610,-500.0,0.00055616,120]
[321230820,1712001049619,-500.0,0.00055616,120]
[321230821,1712001049628,-500.0,0.00055616,120]
[321230822,1712001049637,-6726.5,0.00055616,120]
[321230823,1712001049647,-500.0,0.00055616,120]
[321230824,1712001049656,-372.76655557,0.00055616,120]
[321230828,1712001059087,40019.82561076,0.00035,2]
[321230841,1712001223559,168.02287821,0.0003,2]
[321230845,1712001229326,20491.9126757,0.0002,2]
[321230853,1712001252254,154.9690062,0.000195,2]
[321230854,1712001254600,839.22380616,0.00029,2]
[321230855,1712001255250,3491.75802375,0.000125,2]
[321230856,1712001256370,-234.87518772,0.00035883,4]
[321230857,1712001256391,-446.1930269,0.00035883,4]
[321230858,1712001256412,-1816.93178538,0.00035884,4]
[321230861,1712001270725,1225.81627316,0.0003,2]
[321230868,1712001273533,3134.56787851,0.00021,7]
[321230870,1712001274387,38029.17571624,0.000275,2]
[321230871,1712001275184,42444.72813131,0.0002877,2]
[321230872,1712001275208,150.0,0.0002877,2]
[321230873,1712001275228,150.0,0.0002877,2]
[321230874,1712001275258,40000.0,0.0002877,2]
[321230876,1712001275284,50000.0,0.0002877,2]
[321230878,1712001275391,-12000.0,0.0002877,2]
[321230879,1712001275489,-12000.0,0.0002877,2]
[321230880,1712001275577,-8002.16888849,0.0002877,2]
[321230881,1712001276621,443.56016626,0.00022,2]
[321230882,1712001285223,-1950.0,0.00031,2]
[321230883,1712001417561,-176.0,0.000279,2]
[321230888,1712001830778,1097.498492,0.0003547,120]
[321230892,1712001872942,-10.27269471,0.000279,2]
[321230893,1712001872967,-4.49328276,0.00031,2]
[321230894,1712001872992,-322.55333016,0.00035049,4]
[321230895,1712001873133,-154.90705577,0.0003505,4]
[321230896,1712001873154,-2167.62445783,0.0003505,4]
[321230897,1712001873178,-1163.9035298,0.0003505,4]
[321230898,1712001873199,-920.9747694,0.00035051,4]
[321230899,1712001873220,-4341.34671596,0.00035051,4]
[321230900,1712001873240,-444.81231452,0.00035051,4]
[321230901,1712001873262,-1551.11184909,0.00035052,2]
[321230902,1712001894730,-255.81964128,0.000279,2]
[321230903,1712001894838,-5.22080901,0.000279,2]
[321230905,1712001935805,831.98383533,0.00034378,4]
[321230906,1712001943597,-1256.0,0.00034379,2]
[321230907,1712001952430,3506.72081123,0.00034378,4]
[321230908,1712001955631,1239.699672,0.00034378,4]
[321230909,1712001957993,4512.99315428,0.00034378,4]
[321230910,1712001965948,242.61747251,0.00034378,4]
[321230911,1712001972201,2072.60619044,0.00034378,4]
[321230912,1712001973670,1022.38253125,0.00034018,4]
[321230913,1712001974157,378.41201764,0.00034378,4]
[321230914,1712002010078,-1163.0,0.00032278,2]
[321230915,1712002042487,3760.82762857,0.00034377,4]
[321230916,1712002048593,2059.37,0.00027888,2]
[321230918,1712002113019,3760.82762857,0.00034376,4]
[321230919,1712002116568,154.90705577,0.00027888,2]
[321230920,1712002118951,313.68218326,0.00027888,2]
[321230921,1712002132746,155.54421342,0.00027888,2]
[321230922,1712002132904,313.68218326,0.00027888,2]
[321230923,1712002150881,312.01266244,0.00027888,2]
[321230953,1712002179515,2632.57934,0.00034378,4]
[321231038,1712002233549,-306.69969689,0.00032226,2]
[321231059,1712002238498,-340.0409363,0.00032226,2]
[321231060,1712002238508,-61.56363267,0.00032278,2]
[321231061,1712002238518,-621.33703166,0.00033837,2]
[321231062,1712002238527,-5849.3983784,0.00034175,2]
[321231063,1712002238536,-169.973878,0.00034197,2]
[321231064,1712002238546,-396.608825,0.0003423,2]
[321231065,1712002238555,-737.0748186,0.00034379,2]
[321231066,1712002238564,-200.0,0.00034413,2]
[321231067,1712002238573,-250.0,0.00034415,2]
[321231068,1712002238582,-766.9938411,0.00034562,2]
[321231069,1712002238591,-137.11129561,0.00035052,2]
[321231070,1712002238601,-216.76594596,0.00035093,4]
[321231071,1712002238610,-176.92545993,0.0003539,7]
[321231072,1712002238620,-620.06685158,0.00035529,2]
[321231073,1712002238629,-400.0,0.00035648,2]
[321231074,1712002238638,-400.0,0.00035648,2]
[321231075,1712002238647,-6111.3876883,0.00035649,4]
[321231076,1712002238656,-168.063493,0.00035661,2]
[321231077,1712002238665,-648.88307979,0.00035693,2]
[321231078,1712002238674,-154.92619913,0.00035809,4]
[321231079,1712002238683,-480.40708669,0.00035809,4]
[321231080,1712002238692,-1602.38487509,0.00035809,4]
[321231081,1712002238701,-154.90705577,0.00035809,4]
[321231082,1712002238710,-326.36274695,0.00035809,4]
[321231083,1712002238722,-1224.12904957,0.00035809,4]
[321231084,1712002238731,-508.73686528,0.00035809,4]
[321231085,1712002238740,-219.58654766,0.00035809,4]
[321231086,1712002238749,-2632.57934,0.00035809,4]
[321231087,1712002238758,-361.0,0.0003581,2]
[321231088,1712002238768,-829.66076604,0.0003581,4]
[321231089,1712002238777,-123.75604684,0.00035811,2]
[321231090,1712002238791,-5228.67043871,0.00035811,2]
[321231091,1712002238907,-19547.57351445,0.00035811,2]
[321231092,1712002238918,-1224.56363267,0.00037278,2]
[321231093,1712002238927,-620.00334258,0.00037305,2]
[321231094,1712002238937,-621.44415399,0.00037478,2]
[321231095,1712002238946,-155.00465014,0.00037682,4]
[321231096,1712002238957,-560.0,0.00038197,2]
[321231097,1712002238966,-560.0,0.00038197,2]
[321231098,1712002238976,-1782.29909126,0.00038349,2]
[321231099,1712002238985,-609.1135891,0.00038356,2]
[321231100,1712002238994,-500.0,0.00038448,2]
[321231101,1712002239003,-463.03312935,0.00038448,4]
[321231102,1712002239011,-3018.15584019,0.00038448,4]
[321231103,1712002239021,-295.60459068,0.00038449,4]
[321231104,1712002239030,-984.41941374,0.00038449,4]
[321231105,1712002239039,-4256.85209034,0.00038449,4]
[321231106,1712002239049,-692.8804185,0.00038449,4]
[321231107,1712002239059,-163.71840489,0.00038449,4]
[321231108,1712002239069,-309.66063683,0.00038449,4]
[321231109,1712002239078,-241.5511931,0.00038449,4]
[321231110,1712002239088,-339.00505328,0.00038449,4]
[321231111,1712002239097,-290.1758426,0.00038449,4]
[321231112,1712002239106,-208.73698226,0.0003845,2]
[321231113,1712002239116,-5331.08478951,0.0003845,2]
[321231114,1712002239125,-270.68452976,0.00038451,4]
[321231115,1712002239135,-796.41815272,0.00038451,4]
[321231116,1712002239145,-183.83825319,0.00038451,4]
[321231117,1712002239155,-208.84415989,0.00038451,4]
[321231118,1712002239165,-307.02875756,0.00038451,4]
[321231119,1712002239175,-628.23840798,0.00038451,4]
[321231120,1712002239185,-192.62012556,0.00038451,4]
[321231121,1712002239197,-155.75518289,0.00038451,4]
[321231122,1712002239206,-155.7484645,0.00038451,4]
[321231123,1712002239217,-299.59792754,0.00038451,4]
[321231124,1712002239228,-156.99303499,0.00038451,4]
[321231125,1712002239239,-171.78169344,0.00038451,4]
[321231126,1712002239249,-319.68340137,0.00038451,4]
[321231127,1712002239259,-458.85729217,0.00038451,4]
[321231128,1712002239268,-620.49467544,0.00038451,4]
[321231129,1712002239277,-275.13669639,0.00038451,4]
[321231130,1712002239286,-205.38590199,0.00038451,4]
[321231131,1712002239295,-304.66176136,0.00038451,4]
[321231132,1712002239306,-155.89703315,0.00038451,4]
[321231133,1712002239317,-319.36573979,0.00038451,4]
[321231134,1712002239328,-4631.78380535,0.00038451,4]
[321231135,1712002239338,-626.4556983,0.00038451,4]
[321231136,1712002239347,-502.44085312,0.00038452,4]
[321231137,1712002239356,-3803.10273342,0.00038452,4]
[321231138,1712002239365,-155.27032593,0.00038452,4]
[321231139,1712002239374,-155.57473787,0.00038452,4]
[321231140,1712002239383,-181.17160852,0.00038452,4]
[321231141,1712002239394,-298.76421684,0.00038452,4]
[321231142,1712002239403,-263.79832629,0.00038452,4]
[321231143,1712002239414,-483.31287366,0.00038452,4]
[321231144,1712002239423,-570.17779531,0.00038452,4]
[321231145,1712002239433,-500.0,0.00038503,2]
[321231146,1712002239442,-500.0,0.00038558,2]
[321231147,1712002239452,-500.0,0.00038613,2]
[321231148,1712002239462,-500.0,0.00038667,2]
[321231149,1712002239472,-157.1359098,0.00038707,4]
[321231150,1712002239482,-627.46634023,0.00038722,2]
[321231151,1712002239491,-1782.29909122,0.00039314,2]
[321231152,1712002239501,-7441.5582573,0.0004,2]
[321231153,1712002239511,-155.27083777,0.0004,4]
[321231154,1712002239520,-169.693756,0.0004,2]
[321231155,1712002239533,-1782.29909122,0.0004028,2]
[321231156,1712002239542,-2889.8549002,0.0004075,2]
[321231157,1712002239552,-783.0,0.00040928,3]
[321231158,1712002239561,-783.0,0.00040928,5]
[321231159,1712002239570,-188.04913664,0.00041,2]
[321231160,1712002239579,-166.666666,0.00041096,2]
[321231161,1712002239588,-1782.29909122,0.00041245,2]
[321231162,1712002239598,-1097.498492,0.00041382,120]
[321231163,1712002239607,-307.4991982,0.00041397,2]
[321231164,1712002239616,-202.3118837,0.00041534,2]
[321231165,1712002239625,-306.0,0.00041534,2]
[321231166,1712002239635,-153.2224538,0.00041534,2]
[321231167,1712002239644,-202.3118837,0.00041534,2]
[321231168,1712002239653,-2488.0,0.0004171,4]
[321231169,1712002239663,-155.63145113,0.0004171,4]
[321231170,1712002239672,-155.00465014,0.0004171,4]
[321231171,1712002239681,-306.5919939,0.0004171,4]
[321231172,1712002239690,-36397.8050769,0.00041712,2]
[321231173,1712002239699,-2309.62166871,0.00042,5]
[321231174,1712002239709,-166.666666,0.00042058,2]
[321231175,1712002239720,-1782.29909122,0.0004221,2]
[321231176,1712002239730,-413176.77705014,0.00042296,60]
[321231246,1712002240665,-15488.08102388,0.00042296,60]
[321231311,1712002243718,-2477.076,0.00042296,60]
[321231312,1712002243732,-2550.345,0.00042296,60]
[321231316,1712002246087,-202.3118837,0.00041534,2]
[321231317,1712002246097,-1381.72957274,0.00042296,60]
[321231318,1712002246109,-1804.323423,0.00042296,60]
[321231319,1712002246120,-25923.88434471,0.00042296,60]
[321231320,1712002246132,-773.7199886,0.00042296,60]
[321231329,1712002323906,326.0,0.00034999,3]
[321231330,1712002337002,155.75518289,0.00034998,4]
[321231331,1712002337107,556.59453529,0.00034998,4]
[321231332,1712002345800,1994.83126603,0.00034998,120]
[321231335,1712002401787,-154.87609912,0.00033996,4]
[321231336,1712002401809,-2350.0,0.00033997,2]
[321231337,1712002401831,-155.00465014,0.00034296,4]
[321231338,1712002401858,-9262.25298522,0.00034994,4]
[321231339,1712002401880,-400.0,0.00034994,2]
[321231340,1712002401902,-400.0,0.00034994,2]
[321231341,1712002401924,-154.87609912,0.00034995,2]
[321231342,1712002401947,-2632.57934,0.00034995,4]
[321231343,1712002401969,-923.51836704,0.00034996,4]
[321231344,1712002401990,-420.89245936,0.00034996,4]
[321231348,1712002469903,-2632.57934,0.00033994,4]
[321231349,1712002469926,-154.87609912,0.00033995,4]
[321231350,1712002469946,-3506.72081123,0.00033995,4]
[321231351,1712002469969,-400.0,0.00033995,2]
[321231352,1712002469991,-400.0,0.00033995,2]
[321231353,1712002470011,-4097.67314227,0.00033996,4]
[321231354,1712002470032,-855.15060738,0.00034269,2]
[321231356,1712002490217,-251.46530517,0.00027997,2]
[321231357,1712002490299,-5.131945,0.00027997,2]
[321231358,1712002540654,-154.93802479,0.00033599,2]
[321231359,1712002540675,-169.477125,0.000336,2]
[321231360,1712002540695,-154.93802479,0.00033995,4]
[321231361,1712002540717,-15370.64682542,0.00033996,2]
[321231362,1712002604663,-3458.28066899,0.00033994,4]
[321231363,1712002604697,-400.0,0.00033994,2]
[321231364,1712002604732,-400.0,0.00033994,2]
[321231365,1712002604765,-2632.57934,0.00033995,4]
[321231366,1712002604801,-154.93802479,0.00033995,2]
[321231367,1712002604933,-2587.86848535,0.00033995,4]
[321231368,1712002604974,-9529.35317458,0.00033996,2]
[321231369,1712002641283,-154.93802479,0.00033992,4]
[321231370,1712002641318,-720.88311116,0.00033993,4]
[321231377,1712002983413,1608.243407,0.00033696,120]
[321231478,1712003432610,-2632.57934,0.0003276,4]
[321231480,1712003432620,-489.988622,0.00032761,2]
[321231482,1712003432629,-816.37575511,0.00032895,2]
[321231484,1712003432638,-167.658928,0.00032898,2]
[321231486,1712003432647,-2746.1972169,0.00033492,2]
[321231488,1712003432657,-176.92545993,0.00033687,6]
[321231490,1712003432667,-400.0,0.00033795,2]
[321231492,1712003432676,-400.0,0.00033795,2]
[321231494,1712003432685,-2253.08296093,0.00033796,2]
[321231496,1712003432694,-1004.56025567,0.00033818,2]
[321231498,1712003432703,-170.0,0.00033819,2]
[321231500,1712003432712,-24900.0,0.00033819,2]
[321231502,1712003432721,-202.98775845,0.00033996,4]
[321231504,1712003432730,-2253.0829609,0.00034072,2]
[321231506,1712003432740,-2253.0829609,0.00034348,2]
[321231508,1712003432750,-2253.0829609,0.00034624,2]
[321231510,1712003432759,-261.117279,0.00034894,2]
[321231512,1712003432769,-2253.0829609,0.000349,2]
[321231514,1712003432778,-156.32317295,0.00034992,4]
[321231516,1712003432787,-477.65562487,0.00034992,4]
[321231517,1712003432797,-447.50729799,0.00034993,7]
[321231518,1712003432807,-575.55388484,0.00034993,7]
[321231519,1712003432816,-7461.69539405,0.00034994,4]
[321231520,1712003432832,-1254.57959538,0.00034994,4]
[321231521,1712003432846,-483.60427901,0.00034994,4]
[321231522,1712003432856,-463.53746325,0.00034994,4]
[321231523,1712003432865,-182.45943581,0.00034994,2]
[321231524,1712003432875,-1482.12028671,0.00034994,4]
[321231525,1712003432885,-375.52569336,0.00034996,4]
[321231526,1712003432895,-270.68452976,0.00034996,4]
[321231527,1712003432905,-183.83825319,0.00034996,4]
[321231528,1712003432915,-628.23840798,0.00034996,4]
[321231529,1712003432924,-463.03312935,0.00034996,4]
[321231530,1712003432934,-208.84415989,0.00034996,4]
[321231531,1712003432943,-692.8804185,0.00034996,4]
[321231532,1712003432953,-290.1758426,0.00034996,4]
[321231533,1712003432962,-208.73698226,0.00034996,2]
[321231534,1712003432972,-984.41941374,0.00034996,4]
[321231535,1712003432981,-295.60459068,0.00034996,4]
[321231536,1712003432991,-241.5511931,0.00034996,4]
[321231537,1712003433001,-339.00505328,0.00034996,4]
[321231538,1712003433010,-3018.15584019,0.00034996,4]
[321231539,1712003433019,-309.66063683,0.00034996,4]
[321231540,1712003433029,-163.71840489,0.00034996,4]
[321231541,1712003433042,-2099.49695903,0.00034996,4]
[321231542,1712003433051,-534.98195754,0.00034996,4]
[321231543,1712003433061,-2494.04494456,0.00034996,4]
[321231544,1712003433070,-4983.89848758,0.00034996,4]
[321231545,1712003433080,-5331.08478951,0.00034997,2]
[321231546,1712003433090,-453.78959555,0.00034998,4]
[321231668,1712003438871,-3621.39967451,0.00034998,4]
[321231671,1712003438881,-155.7484645,0.00034998,4]
[321231675,1712003438890,-570.17779531,0.00034998,4]
[321231679,1712003438899,-156.99303499,0.00034998,4]
[321231683,1712003438909,-205.38590199,0.00034998,4]
[321231687,1712003438918,-304.66176136,0.00034998,4]
[321231689,1712003438926,-157.1359098,0.00034998,4]
[321231692,1712003438936,-458.85729217,0.00034998,4]
[321231695,1712003438945,-181.17160852,0.00034998,4]
[321231697,1712003438954,-299.59792754,0.00034998,4]
[321231700,1712003438964,-298.76421684,0.00034998,4]
[321231703,1712003438974,-626.4556983,0.00034998,4]
[321231705,1712003438983,-171.78169344,0.00034998,4]
[321231708,1712003438992,-2488.0,0.00034998,4]
[321231711,1712003439003,-155.57473787,0.00034998,4]
[321231714,1712003439014,-319.68340137,0.00034998,4]
[321231717,1712003439023,-275.13669639,0.00034998,4]
[321231720,1712003439033,-483.31287366,0.00034998,4]
[321231723,1712003439044,-263.79832629,0.00034998,4]
[321231726,1712003439053,-155.27032593,0.00034998,4]
[321231729,1712003439062,-473.63075459,0.00034998,4]
[321231733,1712003439075,-146.86392085,0.00034998,4]
[321231735,1712003439084,-155.89703315,0.00034998,4]
[321231737,1712003439093,-192.62012556,0.00034998,4]
[321231740,1712003439102,-307.02875756,0.00034998,4]
[321231743,1712003439111,-31.58492007,0.00035,2]
[321231750,1712003439137,-2534.78398436,0.00035,2]
[321231753,1712003439148,-37453.45670633,0.00035,2]
[321231756,1712003439158,-4256.85209034,0.00035,4]
[321231759,1712003439167,-621.37528887,0.00035843,2]
[321231761,1712003439177,-560.0,0.00036281,2]
[321231763,1712003439186,-560.0,0.00036281,2]
[321231765,1712003439196,-170.0,0.00036819,2]
[321231767,1712003439206,-170.0,0.00036819,2]
[321231769,1712003439215,-620.06876444,0.00037636,2]
[321231771,1712003439224,-816.37575511,0.00037895,2]
[321231773,1712003439234,-500.0,0.00038356,2]
[321231775,1712003439243,-609.1135891,0.00038356,2]
[321231777,1712003439252,-500.0,0.0003841,2]
[321231779,1712003439262,-500.0,0.00038465,2]
[321231781,1712003439270,-261.11727898,0.00038518,2]
[321231783,1712003439280,-500.0,0.0003852,2]
[321231785,1712003439289,-500.0,0.00038575,2]
[321231787,1712003439298,-627.46634023,0.0003863,2]
[321231789,1712003439308,-783.0,0.0003895,3]
[321231791,1712003439317,-546.0,0.0003895,5]
[321231793,1712003439326,-1608.243407,0.00039312,120]
[321231795,1712003439336,-170.0,0.00039819,2]
[321231797,1712003439346,-170.0,0.00039819,2]
[321231799,1712003439355,-155.27083777,0.0004,4]
[321231801,1712003439365,-169.693759,0.0004,2]
[321231803,1712003439374,-202.3118837,0.00040712,2]
[321231805,1712003439383,-153.0,0.00040712,2]
[321231807,1712003439394,-202.3118837,0.00040712,2]
[321231809,1712003439403,-202.3118837,0.00040712,2]
[321231811,1712003439411,-153.0,0.00040712,2]
[321231813,1712003439420,-202.3118837,0.00040712,2]
[321231815,1712003439429,-153.0,0.00040712,2]
[321231817,1712003439438,-188.04913664,0.00041,2]
[321231819,1712003439447,-166.666666,0.00041096,2]
[321231821,1712003439456,-447.97658176,0.00041096,31]
[321231823,1712003439465,-202.3118837,0.00041478,2]
[321231824,1712003439474,-306.0,0.00041478,2]
[321231826,1712003439483,-202.3118837,0.00041578,2]
[321231828,1712003439492,-1097.0,0.00041815,3]
[321231830,1712003439501,-166.666666,0.00042058,2]
[321231832,1712003439511,-261.11727898,0.00042142,2]
[321231834,1712003439520,-6805.31,0.00042241,7]
[321231836,1712003439528,-6805.31,0.00042241,7]
[321231838,1712003439538,-765.37023256,0.00042241,4]
[321231841,1712003439547,-51661.04635108,0.00042242,60]
[321231842,1712003439556,-887.51945198,0.00042242,120]
[321231844,1712003439565,-31853.02153232,0.00042242,2]
[321231846,1712003439574,-45056.71575352,0.00042242,2]
[321231848,1712003439583,-269792.9540044,0.00042242,2]
[321231850,1712003439592,-300.0,0.00042242,2]
[321231852,1712003439601,-777.74864352,0.00042242,2]
[321231854,1712003439610,-285.18926256,0.00042242,2]
[321231856,1712003439619,-18434.40807669,0.00042242,2]
[321231857,1712003439628,-4069.30410429,0.00042242,2]
[321231858,1712003439637,-314.07392548,0.00042242,2]
[321231859,1712003439646,-279.86614205,0.00042242,2]
[321231860,1712003439655,-968.96751337,0.00042242,120]
[321231861,1712003439664,-279.67723149,0.00042242,120]
[321231862,1712003439674,-150.0,0.00042242,2]
[321231863,1712003439683,-24278.73805766,0.00042242,2]
[321231864,1712003439693,-257.31549262,0.00042242,2]
[321231952,1712003440781,-3025.73,0.00042242,2]
[321232239,1712003443882,-1584.04145644,0.00034998,2]
[321232240,1712003443894,-383.5704081,0.00034998,2]
[321232241,1712003443904,-1420.7530149,0.00042242,2]
[321232242,1712003443915,-5191.4827157,0.00042242,2]
[321232243,1712003443924,-947.93944708,0.00042242,120]
[321232244,1712003443933,-19784.46218193,0.00042242,2]
[321232312,1712003447132,-400.04950656,0.00042242,2]
[321232340,1712004080499,1686.484692,0.00036561,120]
[321232386,1712004566516,1264.863519,0.00034362,120]
[321232416,1712004631875,-154.9690062,0.0003367,4]
[321232417,1712004631885,-154.9690062,0.00033671,4]
[321232418,1712004631894,-2632.57934,0.00033671,4]
[321232419,1712004631904,-534.7826476,0.00033672,2]
[321232508,1712004637975,-1574.50761481,0.00033672,2]
[321232509,1712004637985,-2167.62445783,0.00033672,4]